bitfinex/quotes_SOLUSD_20251013
["timestamp","ask_amount","ask_price","bid_price","bid_amount"]
[1760316210671,5.95795968,196.76,196.73,5.08310882]
[1760316210874,5.95795968,196.75,196.72,17.79156471]
[1760316211096,6.62795968,196.75,196.72,17.79156471]
[1760316211988,6.62795968,196.75,196.72,5.08336722]
[1760316212675,0.67,196.81,196.73,16.83443489]
[1760316212997,5.95795968,196.82,196.76,10.87647521]
[1760316213376,5.95795968,196.82,196.74,17.78997661]
[1760316213377,5.95795968,196.83,196.78,10.87647521]
[1760316213571,6.62795968,196.83,196.76,5.95795968]
[1760316214185,5.95795968,196.82,196.75,16.83443489]
[1760316214392,1e-08,196.88,196.75,16.83443489]
[1760316214393,5.95795968,196.78,196.75,10.87647521]
[1760316214567,5.95795968,196.77,196.75,10.87647521]
[1760316214892,5.95795968,196.77,196.76,5.0823338]
[1760316215195,0.67,196.76,196.72,10.87647521]
[1760316215499,6.62795968,196.75,196.72,10.87647521]
[1760316216305,21.47,196.79,196.72,10.87647521]
[1760316216474,5.95795968,196.76,196.72,10.87647521]
[1760316216813,5.95795968,196.75,196.72,10.87647521]
[1760316216987,5.95795968,196.75,196.73,5.08310882]
[1760316217701,6.62795968,196.75,196.73,5.08310882]
[1760316217906,5.95795968,196.75,196.72,5.08335454]
[1760316218088,5.95795968,196.78,196.73,10.87647521]
[1760316218400,5.95795968,196.77,196.73,10.87647521]
[1760316218576,0.67,196.77,196.73,10.87647521]
[1760316219178,0.67,196.77,196.74,5.08285046]
[1760316219179,6.62795968,196.77,196.74,5.08285046]
[1760316219501,5.95795968,196.79,196.75,10.87647521]
[1760316219700,5.07924186,196.88,196.77,10.87647521]
[1760316219877,0.67,196.87,196.77,10.87647521]
[1760316220076,5.95795968,196.83,196.77,10.87647521]
[1760316221286,5.95795968,196.83,196.79,10.87647521]
[1760316221486,0.67,196.82,196.79,10.87647521]
[1760316222401,0.67,196.82,196.8,5.08130081]
[1760316223474,20.8,196.85,196.81,10.87647521]
[1760316223475,5.95795968,196.85,196.81,10.87647521]
[1760316223678,0.67000001,196.88,196.81,225.37647521]
[1760316223895,5.95795968,196.86,196.81,225.37647521]
[1760316224081,5.95795969,196.88,196.83,10.87647521]
[1760316224282,5.95795968,196.85,196.81,10.87647521]
[1760316224502,5.95795968,196.85,196.81,225.37647521]
[1760316225498,5.95795968,196.85,196.82,17.78274565]
[1760316225704,5.95795968,196.86,196.82,17.78274565]
[1760316225905,6.66795968,196.86,196.82,17.78274565]
[1760316226106,6.66795968,196.85,196.82,17.78274565]
[1760316226500,0.71,196.85,196.82,17.78274565]
[1760316226877,6.66795968,196.85,196.82,17.78274565]
[1760316227907,5.95795968,196.84,196.82,17.78274565]
[1760316228078,6.66795968,196.84,196.82,17.78274565]
[1760316228283,6.66795968,196.83,196.76,214.5]
[1760316228605,5.95795968,196.83,196.77,28.66373951]
[1760316228992,5.95795968,196.84,196.77,34.98169919]
[1760316229310,5.95795968,196.82,196.77,28.66373951]
[1760316229503,6.66795968,196.81,196.77,232.2872643]
[1760316229684,0.71,196.81,196.77,17.7872643]
[1760316229884,6.66795968,196.81,196.77,17.7872643]
[1760316230907,6.66795968,196.8,196.77,5.08207551]
[1760316231093,5.95795968,196.78,196.77,5.08207551]
[1760316231294,6.66795968,196.78,196.77,5.08207551]
[1760316231504,6.66795968,196.78,196.74,12.70668127]
[1760316231810,5.95795968,196.76,196.73,5.08310882]
[1760316232210,6.66795968,196.77,196.73,5.08310882]
[1760316232706,5.95795968,196.74,196.73,5.08310882]
[1760316232908,20.8,196.79,196.73,5.08310882]
[1760316233089,0.71,196.8,196.73,5.08310882]
[1760316233090,0.71,196.8,196.73,23.74884057]
[1760316233281,5.95795968,196.78,196.73,17.79088089]
[1760316233486,6.66795968,196.78,196.73,17.79088089]
[1760316233698,6.66795968,196.8,196.74,10.87647521]
[1760316234801,26.75795968,196.81,196.74,10.87647521]
[1760316235188,5.95795968,196.79,196.74,10.87647521]
[1760316235696,6.63795968,196.79,196.75,5.08259212]
[1760316235890,5.95795968,196.78,196.75,5.08259212]
[1760316236107,6.63795968,196.78,196.75,5.08259212]
[1760316236690,12.70015569,196.85,196.75,5.08259212]
[1760316236691,0.68,196.84,196.76,17.19443489]
[1760316236890,0.68,196.87,196.77,5.95795968]
[1760316237100,5.95795968,196.84,196.77,5.95795968]
[1760316237298,20.8,196.82,196.79,10.87647521]
[1760316237499,6.63795968,196.85,196.79,10.87647521]
[1760316237699,20.8,196.82,196.8,5.08130081]
[1760316238411,6.63795968,196.81,196.77,5.08207551]
[1760316238597,5.95795968,196.79,196.77,5.08207551]
[1760316238916,5.95795968,196.81,196.77,17.7872643]
[1760316239499,21.48,196.83,196.77,17.7872643]
[1760316239810,5.95795968,196.81,196.77,12.70518879]
[1760316240186,21.48,196.83,196.77,12.70518879]
[1760316240391,5.95795968,196.83,196.78,10.87647521]
[1760316240587,5.95795968,196.82,196.78,10.87647521]
[1760316240792,5.95795968,196.83,196.78,10.87647521]
[1760316240988,6.63795968,196.83,196.78,10.87647521]
[1760316241194,26.75795968,196.84,196.78,11.23647521]
[1760316241824,5.95795968,196.83,196.8,10.87647521]
[1760316242514,20.8,196.84,196.8,10.87647521]
[1760316242692,1e-08,196.88,196.81,0.36]
[1760316242899,1e-08,196.88,196.82,16.83443489]
[1760316243100,5.95795968,196.85,196.79,54.06972689]
[1760316243301,1e-08,196.88,196.8,10.87647521]
[1760316243302,5.95795968,196.84,196.8,10.87647521]
[1760316243507,5.95795968,196.85,196.8,10.87647521]
[1760316243792,5.95795968,196.81,196.78,5.08180212]
[1760316243996,5.95795968,196.81,196.72,25.41603174]
[1760316243997,5.95795968,196.79,196.74,10.87647521]
[1760316244216,5.95795968,196.77,196.74,10.87647521]
[1760316244593,5.95795968,196.78,196.74,11.23647521]
[1760316244800,5.95795968,196.78,196.74,10.87647521]
[1760316245396,5.95795968,196.79,196.74,10.87647521]
[1760316245908,5.95795968,196.81,196.76,10.87647521]
[1760316246215,5.95795968,196.83,196.78,10.87647521]
[1760316246418,5.95795968,196.83,196.76,10.87647521]
[1760316246592,5.95795968,196.79,196.76,10.87647521]
[1760316246794,5.95795968,196.77,196.75,5.08259212]
[1760316247802,5.95795968,196.77,196.73,5.08310882]
[1760316248116,20.8,196.79,196.66,12.71229533]
[1760316248117,20.8,196.74,196.66,12.71229533]
[1760316248419,20.8,196.74,196.69,10.87647521]
[1760316248718,20.8,196.74,196.71,10.87647521]
[1760316248909,26.75795968,196.74,196.67,6.31795968]
[1760316249111,26.75795968,196.74,196.68,10.87647521]
[1760316249823,5.95795968,196.72,196.65,25.42588354]
[1760316250006,21.48,196.74,196.65,25.42588354]
[1760316250007,5.95795968,196.71,196.66,10.87647521]
[1760316250204,5.95795968,196.7,196.66,10.87647521]
[1760316250900,6.63795968,196.71,196.67,17.79630853]
[1760316251221,6.63795968,196.7,196.68,10.87647521]
[1760316251919,6.63795968,196.7,196.67,17.79630853]
[1760316252118,5.95795968,196.69,196.67,17.79630853]
[1760316252332,6.63795968,196.68,196.67,5.08465958]
[1760316252530,26.75795968,196.71,196.67,17.79630853]
[1760316252729,20.8,196.71,196.68,10.87647521]
[1760316253223,20.8,196.77,196.69,17.79449894]
[1760316253428,5.95795968,196.74,196.69,98.19449894]
[1760316253643,0.68,196.73,196.69,98.19449894]
[1760316253937,5.95795968,196.71,196.69,134.1]
[1760316254111,26.75795968,196.71,196.69,134.1]
[1760316254310,20.8,196.7,196.69,134.1]
[1760316254813,5.95795968,196.71,196.69,134.1]
[1760316255009,6.63795968,196.7,196.69,134.1]
[1760316255321,27.43795968,196.7,196.69,134.1]
[1760316255930,6.63795968,196.7,196.69,134.1]
[1760316258029,6.63795968,196.7,196.68,5.08439681]
[1760316258237,6.63795968,196.69,196.66,5.08491813]
[1760316258408,20.8,196.66,196.62,139.18571986]
[1760316258606,5.95795968,196.65,196.62,139.18571986]
[1760316258913,5.95795968,196.63,196.62,134.1]
[1760316259118,6.63795968,196.63,196.62,134.1]
[1760316259314,5.95795968,196.63,196.62,134.1]
[1760316259623,5.95795968,196.64,196.62,134.1]
[1760316259928,5.95795968,196.63,196.61,5.08620923]
[1760316260232,27.43795968,196.62,196.57,5.18715727]
[1760316260428,5.95795968,196.58,196.57,5.18715727]
[1760316261351,5.95795968,196.59,196.57,5.18715727]
[1760316261511,5.95795968,196.62,196.57,17.90527295]
[1760316261821,5.95795968,196.59,196.57,17.90527295]
[1760316262024,5.95795968,196.6,196.57,17.90527295]
[1760316262617,0.68,196.61,196.57,17.90527295]
[1760316262618,5.95795968,196.59,196.57,17.90527295]
[1760316262933,5.95795968,196.6,196.57,17.90527295]
[1760316263839,5.95795968,196.62,196.58,10.87647521]
[1760316264048,5.95795968,196.63,196.58,10.87647521]
[1760316264222,5.95795968,196.61,196.58,10.87647521]
[1760316264551,5.95795968,196.62,196.59,17.80355053]
[1760316267448,32.70668174,196.75,196.68,46.99408064]
[1760316267626,5.95795968,196.69,196.68,46.99408064]
[1760316268119,11.91591936,196.69,196.68,46.99408064]
[1760316268729,17.00006191,196.69,196.68,46.99408064]
[1760316269056,17.00006191,196.69,196.68,16.47787371]
[1760316269530,17.69006191,196.69,196.68,16.47787371]
[1760316270229,5.95795968,196.62,196.61,85.48619392]
[1760316271550,5.95795968,196.68,196.61,85.48619392]
[1760316271551,8.88174186,196.69,196.62,10.87647521]
[1760316271735,8.88174186,196.69,196.62,19.75821707]
[1760316271929,0.69,196.73,196.64,19.75821707]
[1760316272150,29.68174186,196.71,196.64,19.75821707]
[1760316272322,8.88174186,196.7,196.64,10.87647521]
[1760316272653,8.88174186,196.65,196.61,5.08619392]
[1760316272953,8.88174186,196.66,196.59,20.45821707]
[1760316273249,29.68174186,196.66,196.59,20.45821707]
[1760316273852,29.68174186,196.66,196.61,19.75821707]
[1760316273853,20.8,196.66,196.61,19.75821707]
[1760316274019,11.53894538,196.68,196.61,19.75821707]
[1760316274020,2.65720352,196.68,196.61,19.75821707]
[1760316274225,0.69,196.75,196.65,10.87647521]
[1760316274442,8.88174186,196.71,196.65,10.87647521]
[1760316275043,8.88174186,196.67,196.66,5.08491813]
[1760316275543,8.88174186,196.69,196.66,5.08491813]
[1760316275742,8.88174186,196.68,196.66,5.08491813]
[1760316276737,8.88174186,196.67,196.66,5.08491813]
[1760316277042,8.88174186,196.67,196.65,12.71281475]
[1760316277245,8.88174186,196.68,196.65,12.71281475]
[1760316277443,8.88174186,196.66,196.64,5.08543531]
[1760316277947,8.88174186,196.65,196.64,5.08543531]
[1760316278245,8.88174186,196.65,196.59,17.80299939]
[1760316278431,8.88174186,196.63,196.59,17.80299939]
[1760316279338,8.88174186,196.63,196.59,12.71627067]
[1760316280038,0.69,196.71,196.6,20.45821707]
[1760316280242,8.88174186,196.66,196.6,20.45821707]
[1760316280441,20.8,196.67,196.6,20.45821707]
[1760316280639,0.69,196.74,196.65,19.75821707]
[1760316280829,0.69,196.74,196.65,10.87647521]
[1760316280830,8.88174186,196.7,196.65,10.87647521]
[1760316281031,8.88174186,196.7,196.65,0.7]
[1760316281227,8.88174186,196.7,196.65,10.87647521]
[1760316281434,8.88174186,196.7,196.66,17.79721346]
[1760316281747,8.88174186,196.72,196.66,18.49721346]
[1760316281951,8.88174186,196.71,196.66,17.79721346]
[1760316282253,20.8,196.7,196.67,10.87647521]
[1760316282562,20.8,196.7,196.66,27.37895532]
[1760316282563,8.88174186,196.7,196.66,17.79721346]
[1760316283264,8.88174186,196.71,196.66,17.79721346]
[1760316283633,23.45658324,196.73,196.67,11.57647521]
[1760316283838,23.45658324,196.73,196.67,20.45821707]
[1760316284053,11.5383251,196.73,196.67,20.45821707]
[1760316284253,11.5383251,196.73,196.67,11.57647521]
[1760316284643,2.65658324,196.73,196.67,20.45821707]
[1760316284855,2.65658324,196.73,196.69,10.87647521]
[1760316285053,8.88174186,196.78,196.72,10.87647521]
[1760316285256,0.72,196.79,196.74,19.75821707]
[1760316285257,2.65554544,196.79,196.74,19.75821707]
[1760316285468,2.65554544,196.79,196.78,8.88174186]
[1760316285766,8.88174186,196.84,196.78,9.55174186]
[1760316285956,8.88174186,196.84,196.78,0.67]
[1760316286147,8.88174186,196.84,196.78,11.54647521]
[1760316286739,8.88174186,196.83,196.79,17.78545657]
[1760316286946,9.60174186,196.82,196.79,17.78545657]
[1760316287446,8.88174186,196.8,196.79,5.08155902]
[1760316288052,9.60174186,196.81,196.79,5.08155902]
[1760316288251,8.88174186,196.8,196.79,5.08155902]
[1760316288461,9.60174186,196.8,196.77,5.08182342]
[1760316288642,8.88174186,196.78,196.74,5.08285046]
[1760316288840,8.88174186,196.75,196.73,12.70734652]
[1760316289745,8.88174186,196.76,196.73,12.70734652]
[1760316290057,20.8,196.8,196.73,12.70734652]
[1760316290058,9.60174186,196.75,196.73,12.70734652]
[1760316290247,8.88174186,196.75,196.73,12.70734652]
[1760316290443,8.88174186,196.74,196.73,12.70734652]
[1760316290638,8.88174186,196.74,196.71,5.08362564]
[1760316291649,8.88174186,196.73,196.71,5.08362564]
[1760316291842,0.72,196.76,196.68,17.79540369]
[1760316291843,8.88174186,196.72,196.68,17.79540369]
[1760316292049,8.88174186,196.73,196.68,18.46540369]
[1760316292452,0.72,196.76,196.68,17.79540369]
[1760316292649,20.8,196.78,196.7,19.75821707]
[1760316292851,8.88174186,196.76,196.7,19.75821707]
[1760316293362,8.88174186,196.75,196.7,10.87647521]
[1760316293566,21.52,196.77,196.69,0.67]
[1760316293865,8.88174186,196.75,196.69,0.67]
[1760316294066,8.88174186,196.75,196.69,9.55174186]
[1760316294255,8.88174186,196.75,196.69,0.67]
[1760316294456,8.88174186,196.75,196.7,17.79359429]
[1760316294654,8.88174186,196.76,196.7,17.79359429]
[1760316295349,20.8,196.79,196.73,10.87647521]
[1760316295554,9.57174186,196.8,196.74,8.88174186]
[1760316296058,0.69,196.8,196.74,8.88174186]
[1760316296251,29.68174186,196.8,196.73,20.40821707]
[1760316296452,8.88174186,196.79,196.74,17.78997661]
[1760316296962,8.88174186,196.78,196.74,17.78997661]
[1760316297468,8.88174186,196.76,196.74,17.78997661]
[1760316297678,8.88174186,196.76,196.69,20.40821707]
[1760316297679,9.57174186,196.75,196.72,5.08312502]
[1760316297882,8.88174186,196.73,196.72,5.08312502]
[1760316298572,8.88174186,196.73,196.68,43.21740897]
[1760316298775,8.88174186,196.72,196.68,17.79540369]
[1760316299891,8.88174186,196.74,196.68,12.71100264]
[1760316300182,8.88174186,196.77,196.71,19.75821707]
[1760316300380,8.88174186,196.73,196.68,12.71100264]
[1760316300553,9.57174186,196.73,196.68,12.71100264]
[1760316300961,8.88174186,196.73,196.68,13.36100264]
[1760316301463,8.88174186,196.71,196.68,12.71100264]
[1760316301665,9.57174186,196.71,196.68,12.71100264]
[1760316302052,8.88174186,196.69,196.65,80.4]
[1760316302247,5.08338608,196.72,196.65,80.4]
[1760316302248,0.69,196.72,196.65,80.4]
[1760316302552,8.88174186,196.69,196.65,80.4]
[1760316302753,8.88174186,196.66,196.63,5.08569394]
[1760316302952,8.88174186,196.65,196.63,5.08569394]
[1760316303370,9.57174186,196.64,196.61,5.08602195]
[1760316303672,9.57174186,196.64,196.57,25.53496338]
[1760316303673,8.88174186,196.62,196.57,0.1]
[1760316303872,8.88174186,196.59,196.57,5.1870207]
[1760316304089,20.8,196.63,196.58,0.65]
[1760316304275,20.8,196.63,196.57,17.90513638]
[1760316304276,29.68174186,196.63,196.57,17.90513638]
[1760316304590,8.88174186,196.6,196.57,5.1870207]
[1760316304888,8.88174186,196.58,196.57,0.1]
[1760316305252,9.57174186,196.58,196.57,0.1]
[1760316306179,30.37174186,196.58,196.57,0.1]
[1760316307682,9.57174186,196.58,196.57,0.1]
[1760316308675,21.49,196.58,196.57,0.1]
[1760316308884,30.37174186,196.58,196.57,0.1]
[1760316309276,5.08816751,196.65,196.57,0.1]
[1760316309460,8.88174186,196.61,196.57,5.18724627]
[1760316309658,29.68174186,196.62,196.57,17.90536195]
[1760316309862,8.88174186,196.58,196.57,0.1]
[1760316310064,20.8,196.6,196.57,5.18724627]
[1760316310473,8.88174186,196.61,196.57,17.90536195]
[1760316310781,8.88174186,196.62,196.57,17.90536195]
[1760316310975,0.69,196.7,196.58,20.40821707]
[1760316311178,0.69,196.74,196.63,8.88174186]
[1760316311378,8.88174186,196.73,196.66,8.88174186]
[1760316311565,8.88174186,196.74,196.68,8.88174186]
[1760316311756,8.88174186,196.74,196.67,9.53174186]
[1760316311962,8.88174186,196.72,196.67,0.65]
[1760316312278,20.8,196.68,196.62,0.65]
[1760316312479,8.88174186,196.67,196.61,10.87647521]
[1760316312781,8.88174186,196.68,196.62,0.65]
[1760316312978,8.88174186,196.73,196.67,10.87647521]
[1760316313273,8.88174186,196.74,196.67,20.40821707]
[1760316313480,8.88174186,196.73,196.67,11.52647521]
[1760316313680,0.69,196.76,196.67,11.52647521]
[1760316313884,0.69,196.78,196.69,19.75821707]
[1760316314080,8.88174186,196.75,196.7,0.65]
[1760316314390,8.88174186,196.73,196.66,21.45]
[1760316314589,8.88174186,196.71,196.65,0.65]
[1760316314889,8.88174186,196.73,196.68,10.87647521]
[1760316315094,8.88174186,196.74,196.68,10.87647521]
[1760316315296,8.88174186,196.74,196.67,26.67805039]
[1760316315297,8.88174186,196.71,196.67,17.79630853]
[1760316315586,8.88174186,196.7,196.67,17.79630853]
[1760316315776,8.88174186,196.7,196.67,5.08465958]
[1760316315982,8.88174186,196.69,196.67,5.08465958]
[1760316316159,20.8,196.72,196.67,5.08465958]
[1760316316363,8.88174186,196.71,196.67,5.08465958]
[1760316316570,8.88174186,196.69,196.67,5.08465958]
[1760316316960,8.88174186,196.69,196.65,17.79811847]
[1760316317376,8.88174186,196.68,196.57,134.2]
[1760316317575,8.88174186,196.67,196.61,10.87647521]
[1760316317771,8.88174186,196.66,196.6,0.65]
[1760316317962,8.88174186,196.65,196.59,10.87647521]
[1760316318162,8.88174186,196.66,196.6,0.65]
[1760316318790,8.88174186,196.65,196.59,10.87647521]
[1760316319277,8.88174186,196.65,196.6,17.80264495]
[1760316319460,8.88174186,196.65,196.6,18.45264495]
[1760316320379,9.57174186,196.64,196.6,17.80264495]
[1760316320607,8.88174186,196.62,196.6,5.08646998]
[1760316320820,8.88174186,196.62,196.57,12.81782002]
[1760316320821,0.69,196.61,196.57,0.1]
[1760316321102,8.88174186,196.58,196.57,0.1]
[1760316321404,9.57174186,196.58,196.57,0.1]
[1760316322189,8.88174186,196.59,196.57,0.1]
[1760316322882,0.69,196.58,196.57,0.1]
[1760316324185,8.88174186,196.59,196.57,0.1]
[1760316324399,9.57174186,196.59,196.57,0.1]
[1760316324585,9.59174186,196.58,196.57,0.1]
[1760316326793,8.88174186,196.58,196.57,5.18724627]
[1760316326990,8.88174186,196.58,196.57,0.1]
[1760316326991,9.59174186,196.58,196.57,0.1]
[1760316328911,21.51,196.58,196.57,0.1]
[1760316329207,30.39174186,196.58,196.57,0.1]
[1760316330313,0.71,196.58,196.57,0.1]
[1760316330604,35.47872934,196.58,196.57,0.1]
[1760316330813,35.47872934,196.58,196.52,0.1]
[1760316330985,8.88174186,196.53,196.52,0.1]
[1760316331306,20.8,196.55,196.52,0.1]
[1760316331501,45.42734605,196.64,196.52,0.1]
[1760316331502,20.8,196.59,196.52,5.85849316]
[1760316331803,8.88174186,196.54,196.52,5.18849316]
[1760316332008,0.71,196.58,196.52,5.18849316]
[1760316332205,29.68174186,196.56,196.52,5.18849316]
[1760316332404,8.88174186,196.55,196.52,5.18849316]
[1760316332707,8.88174186,196.53,196.52,5.18849316]
[1760316332911,8.88174186,196.54,196.52,5.18849316]
[1760316333092,0.71,196.61,196.53,0.67]
[1760316333286,8.88174186,196.58,196.53,0.67]
[1760316333612,5.96651366,196.63,196.56,5.96651366]
[1760316333791,5.96651366,196.63,196.56,0.67]
[1760316333989,5.96651366,196.64,196.57,10.87647521]
[1760316334189,0.71,196.7,196.59,16.84298887]
[1760316334383,17.95601975,196.73,196.59,16.84298887]
[1760316334384,17.95601975,196.73,196.61,16.84298887]
[1760316334688,5.96651366,196.69,196.62,6.63651366]
[1760316334889,5.96651366,196.69,196.63,17.79992879]
[1760316335213,5.96651366,196.71,196.64,0.67]
[1760316335407,5.96651366,196.69,196.64,0.67]
[1760316335705,5.96651366,196.7,196.64,0.67]
[1760316335916,5.96651366,196.66,196.63,5.08569394]
[1760316336214,5.96651366,196.66,196.53,19.99999999]
[1760316336215,5.96651366,196.64,196.56,10.87647521]
[1760316336390,21.51,196.65,196.56,10.87647521]
[1760316336391,5.96651366,196.61,196.56,10.87647521]
[1760316336589,5.96651366,196.61,196.56,11.54647521]
[1760316336785,5.96651366,196.59,196.53,17.80898589]
[1760316336994,5.96651366,196.58,196.55,17.80717373]
[1760316337198,5.96651366,196.59,196.56,0.67]
[1760316337391,5.96651366,196.59,196.55,17.80717373]
[1760316338010,5.96651366,196.58,196.55,17.80717373]
[1760316339214,5.96651366,196.58,196.55,12.71940981]
[1760316339425,5.96651366,196.57,196.54,5.08802279]
[1760316339819,5.96651366,196.55,196.54,5.08802279]
[1760316340203,6.67651366,196.55,196.52,0.1]
[1760316340399,5.96651366,196.53,196.52,0.1]
[1760316340902,6.67651366,196.53,196.52,0.1]
[1760316343395,0.71,196.53,196.52,0.1]
[1760316343697,6.67651366,196.53,196.52,0.1]
[1760316344093,11.76479534,196.53,196.52,0.1]
[1760316344505,6.67651366,196.53,196.52,0.1]
[1760316344710,20.8,196.5,196.44,0.1]
[1760316344890,26.76651366,196.45,196.44,0.1]
[1760316345395,12.64302732,196.45,196.44,0.1]
[1760316345605,12.64302732,196.45,196.4,0.1]
[1760316345811,11.05790411,196.41,196.4,0.1]
[1760316346010,5.96651366,196.41,196.4,0.1]
[1760316346213,6.65651366,196.41,196.4,0.1]
[1760316346413,9.31760854,196.41,196.4,0.1]
[1760316346619,20.8,196.38,196.37,0.1]
[1760316346938,26.76651366,196.38,196.37,0.1]
[1760316347127,27.45651366,196.38,196.37,0.1]
[1760316347617,5.96651366,196.38,196.37,0.1]
[1760316348003,6.65651366,196.38,196.37,0.1]
[1760316348395,11.7486819,196.38,196.37,0.1]
[1760316349214,6.65651366,196.38,196.37,0.1]
[1760316350398,0.69,196.38,196.37,0.1]
[1760316350600,20.8,196.4,196.37,0.1]
[1760316350815,5.96651366,196.39,196.37,0.1]
[1760316351024,2.66109488,196.41,196.38,0.66]
[1760316351314,5.96651366,196.42,196.39,0.66]
[1760316351704,5.96651366,196.42,196.4,0.66]
[1760316351909,0.69,196.51,196.41,0.66]
[1760316352109,5.96651366,196.45,196.41,0.66]
[1760316352335,5.96651366,196.44,196.41,0.66]
[1760316352520,5.96651366,196.45,196.42,5.75113124]
[1760316352724,5.96651366,196.45,196.42,18.47895936]
[1760316353022,5.96651366,196.46,196.43,0.66]
[1760316353323,5.96651366,196.47,196.43,0.66]
[1760316353699,5.96651366,196.47,196.42,17.81895936]
[1760316353900,5.96651366,196.5,196.44,6.62651366]
[1760316354211,2.66221772,196.58,196.42,17.81895936]
[1760316354212,8.62597672,196.53,196.46,5.96651366]
[1760316354452,5.96651366,196.68,196.45,11.53647521]
[1760316354453,5.08507549,196.66,196.52,17.80989211]
[1760316354604,5.08507549,196.66,196.53,0.71]
[1760316354605,0.66,196.64,196.53,0.71]
[1760316354804,3.32198019,196.64,196.54,10.87647521]
[1760316355018,5.96651366,196.6,196.55,0.71]
[1760316355224,5.96651366,196.56,196.52,17.80989211]
[1760316355426,5.96651366,196.56,196.53,0.71]
[1760316356009,5.96651366,196.56,196.52,17.80989211]
[1760316356215,0.66,196.59,196.53,0.71]
[1760316356533,5.96651366,196.59,196.54,17.80807977]
[1760316356740,5.96651366,196.59,196.55,0.71]
[1760316356904,5.96651366,196.58,196.55,0.71]
[1760316357110,5.96651366,196.57,196.54,5.08802279]
[1760316357619,5.96651366,196.58,196.55,0.71]
[1760316357930,5.96651366,196.57,196.54,5.08802279]
[1760316358229,26.76651366,196.55,196.42,19.99999999]
[1760316358429,20.8,196.39,196.37,0.1]
[1760316358639,5.96651366,196.38,196.37,0.1]
[1760316358827,11.93302732,196.33,196.32,0.1]
[1760316359034,20.8,196.31,196.3,0.1]
[1760316359537,5.96651366,196.31,196.3,0.81]
[1760316359732,5.96651366,196.33,196.3,0.81]
[1760316359929,5.96651366,196.33,196.31,0.71]
[1760316360129,5.96651366,196.32,196.3,0.1]
[1760316360428,20.8,196.34,196.3,0.1]
[1760316360633,5.96651366,196.34,196.31,0.71]
[1760316360940,5.96651366,196.34,196.3,5.19408487]
[1760316361115,20.8,196.39,196.31,0.71]
[1760316361320,20.8,196.35,196.31,0.71]
[1760316361640,20.8,196.35,196.32,0.71]
[1760316361823,20.8,196.35,196.33,0.71]
[1760316362020,20.8,196.37,196.33,0.71]
[1760316362531,20.8,196.35,196.3,11.87059853]
[1760316362831,20.8,196.35,196.31,0.71]
[1760316363337,5.96651366,196.4,196.32,6.67651366]
[1760316363528,20.8,196.37,196.32,6.67651366]
[1760316363726,20.8,196.37,196.33,0.71]
[1760316363926,19.99999999,196.5,196.34,16.84298887]
[1760316364232,5.96651366,196.47,196.38,5.96651366]
[1760316364537,0.66,196.52,196.44,5.96651366]
[1760316365036,6.62651366,196.52,196.44,5.96651366]
[1760316365539,5.96651366,196.52,196.43,0.71]
[1760316365837,5.96651366,196.5,196.43,0.71]
[1760316366416,38.9758391,196.59,196.45,17.81623821]
[1760316366417,20.8,196.54,196.45,17.81623821]
[1760316366616,2.65934889,196.52,196.45,17.81623821]
[1760316367512,20.8,196.48,196.45,17.81623821]
[1760316367836,5.96651366,196.49,196.45,17.81623821]
[1760316368241,26.76651366,196.5,196.45,18.52623821]
[1760316368824,5.96651366,196.49,196.45,18.52623821]
[1760316369034,26.76651366,196.5,196.45,18.52623821]
[1760316369934,20.8,196.5,196.46,0.71]
[1760316370238,20.8,196.5,196.45,17.81623821]
[1760316370438,2.65925949,196.54,196.49,5.96651366]
[1760316370639,5.96651366,196.57,196.51,17.81079843]
[1760316370938,5.96651366,196.6,196.54,10.87647521]
[1760316371124,3.32198019,196.64,196.54,10.87647521]
[1760316371125,2.65839204,196.59,196.54,17.55298887]
[1760316371316,8.62849385,196.64,196.56,16.84298887]
[1760316371523,5.96651366,196.65,196.58,16.84298887]
[1760316371739,2.66076693,196.7,196.61,10.87647521]
[1760316371956,5.96651366,196.68,196.61,17.55298887]
[1760316372654,5.96651366,196.65,196.58,17.55298887]
[1760316372856,5.96651366,196.67,196.6,5.96651366]
[1760316373159,5.96651366,196.69,196.62,5.96651366]
[1760316373324,5.96651366,196.69,196.63,10.87647521]
[1760316373523,5.96651366,196.69,196.63,11.58647521]
[1760316373827,5.96651366,196.71,196.64,6.67651366]
[1760316374028,0.66,196.78,196.67,16.84298887]
[1760316374337,0.66,196.78,196.65,10.87647521]
[1760316374338,5.96651366,196.72,196.65,10.87647521]